Workbook

Sheet Season - Summary
C2: Alaska EM Programs Cost Analysis: January 20XX to December 20XX
B3: PROJECT COORDINATION | D3: September | E3: October | F3: November | G3: December | H3: January | I3: February | J3: March | K3: April | L3: May | M3: June | N3: July | O3: August | P3: One Time | Q3: Recurring | R3: Amortized | S3: Yearly Total | T3: 2015 Amortized | U3: 2016 Amortized | V3: 2017 Amortized | W3: Adjusted Annual Cost
B4: Project Coordination Totals | D4: =SUM(#REF!,#REF!,#REF!) ->  | E4: =SUM(#REF!,#REF!,#REF!) ->  | F4: =SUM(#REF!,#REF!,#REF!) ->  | G4: =SUM(#REF!,#REF!,#REF!) ->  | H4: =SUM(#REF!,#REF!,#REF!) ->  | I4: =SUM(#REF!,#REF!,#REF!) ->  | J4: =SUM(#REF!,#REF!,#REF!) ->  | K4: =SUM(#REF!,#REF!,#REF!) ->  | L4: =SUM(#REF!,#REF!,#REF!) ->  | M4: =SUM(#REF!,#REF!,#REF!) ->  | N4: =SUM(#REF!,#REF!,#REF!) ->  | O4: =SUM(#REF!,#REF!,#REF!) ->  | P4: $ | Q4: $ | R4: $ | S4: $ | W4: =SUM(#REF!) -> 
B6: DATA ANALYSIS SERVICES | D6: September | E6: October | F6: November | G6: December | H6: January | I6: February | J6: March | K6: April | L6: May | M6: June | N6: July | O6: August | P6: One Time | Q6: Recurring | R6: Amortized | S6: Yearly Total
B7: Data Analysis Services Totals | N7: =SUM(#REF!,#REF!,#REF!) ->  | O7: =SUM(#REF!,#REF!,#REF!) ->  | P7: $ | Q7: $ | R7: $ | S7: $ | W7: =SUM(#REF!) -> 
B9: EM EQUIPMENT SERVICES | D9: September | E9: October | F9: November | G9: December | H9: January | I9: February | J9: March | K9: April | L9: May | M9: June | N9: July | O9: August | P9: One Time | Q9: Recurring | R9: Amortized | S9: 2018 Total
B10: EM Equipment Services Totals | N10: =SUM(#REF!,#REF!,#REF!) ->  | O10: =SUM(#REF!,#REF!,#REF!) ->  | P10: $ | Q10: $ | R10: $ | S10: $ | T10: =SUM(#REF!,#REF!,#REF!) ->  | U10: =SUM(#REF!,#REF!,#REF!) ->  | V10: =SUM(#REF!,#REF!,#REF!) ->  | W10: =SUM(#REF!) -> 
B12: FIELD TECHNICAL SERVICES | D12: September | E12: October | F12: November | G12: December | H12: January | I12: February | J12: March | K12: April | L12: May | M12: June | N12: July | O12: August | P12: One Time | Q12: Recurring | R12: Amortized | S12: 2018 Total
B13: Other | N13: 0 | O13: 0 | P13: 0 | Q13: =+S13 -> 0 | R13: 0 | S13: =SUM(D13:O13) -> 0
B14: Field Technical Services Totals | N14: =SUM(#REF!,#REF!,#REF!,#REF!) ->  | O14: =SUM(#REF!,#REF!,#REF!,#REF!) ->  | P14: $ | Q14: $ | R14: $ | S14: $ | T14: =SUM(#REF!,#REF!,#REF!,#REF!) ->  | U14: =SUM(#REF!,#REF!,#REF!,#REF!) ->  | V14: =SUM(#REF!,#REF!,#REF!,#REF!) ->  | W14: =SUM(#REF!) -> 
B16: YEARLY PROGRAM TOTALS | D16: =SUM(D14,D10,D7,D4) ->  | P16: $ | Q16: $ | R16: $ | S16: $ | T16: =SUM(T14,T10,T7,T4) ->  | U16: =SUM(U14,U10,U7,U4) ->  | V16: =SUM(V14,V10,V7,V4) ->  | W16: =SUM(W4,W7,W10,W14) -> 
B149: Subcontractors | D149: 0 | E149: 0 | F149: 0 | G149: 0 | H149: 0 | I149: 0 | J149: 0 | K149: 0 | L149: 0 | M149: 0 | N149: 0 | O149: 0 | P149: =+S149 -> 0 | Q149: 0 | R149: 0 | S149: =SUM(D149:O149) -> 0
B150: Other | D150: 0 | E150: 0 | F150: 0 | G150: 0 | H150: 0 | I150: 0 | J150: 0 | K150: 0 | L150: 0 | M150: 0 | N150: 0 | O150: 0 | P150: =+S150 -> 0 | Q150: 0 | R150: 0 | S150: =SUM(D150:O150) -> 0
B151: Data Analysis and Reporting
B152: Labour | D152: $2,895.75 | E152: $6,270.25 | F152: $8,285.75 | G152: $4,110.75 | H152: $202.50 | I152: 0 | J152: $60.75 | K152: 0 | L152: $81.00 | M152: 0 | N152: 0 | O152: 0 | P152: 0 | Q152: =+S152 -> $21,906.75 | R152: 0 | S152: =SUM(D152:O152) -> $21,906.75
B153: Equipment | D153: 0 | E153: 0 | F153: 0 | G153: 0 | H153: 0 | I153: 0 | J153: 0 | K153: 0 | L153: 0 | M153: 0 | N153: 0 | O153: 0 | P153: 0 | Q153: =+S153 -> 0 | R153: 0 | S153: =SUM(D153:O153) -> 0
B154: Travel | D154: 0 | E154: 0 | F154: 0 | G154: 0 | H154: 0 | I154: 0 | J154: 0 | K154: 0 | L154: 0 | M154: 0 | N154: 0 | O154: 0 | P154: 0 | Q154: =+S154 -> 0 | R154: 0 | S154: =SUM(D154:O154) -> 0
B155: Subcontractors | D155: 0 | E155: 0 | F155: 0 | G155: 0 | H155: 0 | I155: 0 | J155: 0 | K155: 0 | L155: 0 | M155: 0 | N155: 0 | O155: 0 | P155: 0 | Q155: =+S155 -> 0 | R155: 0 | S155: =SUM(D155:O155) -> 0
B156: Software | D156: $666.67 | E156: $666.67 | F156: $666.67 | G156: $666.67 | H156: $666.67 | I156: $666.67 | J156: $666.66 | K156: $666.66 | L156: $666.66 | M156: $666.66 | P156: 0 | Q156: =+S156 -> $6,666.68 | R156: 0 | S156: =SUM(D156:O156) -> $6,666.68
B157: EM Data Interpretation
B158: Labour | D158: 0 | E158: 0 | F158: 0 | G158: $141.75 | H158: $121.50 | I158: $40.50 | J158: 0 | K158: $20.25 | L158: 0 | M158: $141.75 | N158: 0 | O158: 0 | P158: 0 | Q158: =+S158 -> $465.75 | R158: 0 | S158: =SUM(D158:O158) -> $465.75
B159: Equipment | D159: 0 | E159: 0 | F159: 0 | G159: 0 | H159: 0 | I159: 0 | J159: 0 | K159: 0 | L159: 0 | M159: 0 | N159: 0 | O159: 0 | P159: 0 | Q159: =+S159 -> 0 | R159: 0 | S159: =SUM(D159:O159) -> 0
B160: Travel | D160: 0 | E160: 0 | F160: 0 | G160: 0 | H160: 0 | I160: 0 | J160: 0 | K160: 0 | L160: 0 | M160: 0 | N160: 0 | O160: 0 | P160: 0 | Q160: =+S160 -> 0 | R160: 0 | S160: =SUM(D160:O160) -> 0
B161: Subcontractors | D161: 0 | E161: 0 | F161: 0 | G161: 0 | H161: 0 | I161: 0 | J161: 0 | K161: 0 | L161: 0 | M161: 0 | N161: 0 | O161: 0 | P161: 0 | Q161: =+S161 -> 0 | R161: 0 | S161: =SUM(D161:O161) -> 0
B162: Other | D162: 0 | E162: 0 | F162: 0 | G162: 0 | H162: 0 | I162: 0 | J162: 0 | K162: 0 | L162: 0 | M162: 0 | N162: 0 | O162: 0 | P162: 0 | Q162: =+S162 -> 0 | R162: 0 | S162: =SUM(D162:O162) -> 0
B163: Data Analysis Services Totals | D163: =SUM(D146:D162) -> $3,562.42 | E163: =SUM(E146:E162) -> $6,936.92 | F163: $8,952.42 | G163: $4,919.17 | H163: $990.67 | I163: $707.17 | J163: $727.41 | K163: $686.91 | L163: $747.66 | M163: $808.41 | N163: 0 | O163: 0 | P163: =SUM(P146:P162) -> 0 | Q163: =SUM(Q146:Q162) -> $29,039.18 | R163: =SUM(R146:R162) -> 0 | S163: =SUM(S146:S162) -> $29,039.18
B165: EM EQUIPMENT SERVICES | D165: September | E165: October | F165: November | G165: December | H165: January | I165: February | J165: March | K165: April | L165: May | M165: June | N165: July | O165: August | P165: One Time | Q165: Recurring | R165: Amortized | S165: Total To Date
B166: Equipment Provision
B167: Labour | D167: 0 | E167: 0 | F167: 0 | G167: 0 | H167: $3,450.75 | I167: $457.50 | J167: $660.75 | K167: $390.75 | L167: $81.00 | M167: 0 | N167: 0 | O167: 0 | P167: 0 | Q167: 0 | R167: =+S167 -> $5,040.75 | S167: =SUM(D167:O167) -> $5,040.75
B168: Equipment | D168: 0 | E168: 0 | F168: 0 | G168: $55,732.71 | H168: $230,474.89 | I168: $23,648.46 | J168: 0 | K168: $121,726.00 | L168: 0 | M168: 0 | N168: 0 | O168: 0 | P168: 0 | Q168: 0 | R168: =+S168 -> $431,582.06 | S168: =SUM(D168:O168) -> $431,582.06
B169: Travel | D169: 0 | E169: 0 | F169: 0 | G169: 0 | I169: 0 | J169: 0 | K169: 0 | L169: 0 | M169: 0 | N169: 0 | O169: 0 | P169: 0 | Q169: 0 | R169: =+S169 -> 0 | S169: =SUM(D169:O169) -> 0
B170: Subcontractors | D170: 0 | E170: 0 | F170: 0 | G170: 0 | H170: 0 | I170: 0 | J170: 0 | K170: 0 | L170: 0 | M170: 0 | N170: 0 | O170: 0 | P170: 0 | Q170: 0 | R170: =+S170 -> 0 | S170: =SUM(D170:O170) -> 0
B171: Shipping | D171: $137.37 | E171: 0 | F171: $1,638.20 | G171: $873.26 | H171: $7,159.91 | I171: $711.76 | J171: $747.32 | K171: $884.28 | L171: $1,366.87 | M171: $322.60 | N171: 0 | O171: 0 | P171: 0 | Q171: 0 | R171: =+S171 -> $13,841.57 | S171: =SUM(D171:O171) -> $13,841.57
B172: Product Support
B173: Labour | D173: 0 | E173: $218.75 | F173: 0 | G173: $14,567.00 | H173: $16,475.00 | I173: $11,644.75 | J173: $6,196.50 | K173: $701.50 | L173: $27.00 | M173: 0 | N173: 0 | O173: 0 | P173: 0 | Q173: =+S173 -> $49,830.50 | R173: 0 | S173: =SUM(D173:O173) -> $49,830.50
B174: Equipment | D174: 0 | E174: 0 | F174: 0 | G174: 0 | H174: 0 | I174: 0 | J174: 0 | K174: 0 | L174: 0 | M174: 0 | N174: 0 | O174: 0 | P174: 0 | Q174: =+S174 -> 0 | R174: 0 | S174: =SUM(D174:O174) -> 0
B175: Travel | D175: 0 | E175: 0 | F175: 0 | G175: 0 | H175: 0 | I175: 0 | J175: 0 | K175: 0 | L175: 0 | M175: 0 | N175: 0 | O175: 0 | P175: 0 | Q175: =+S175 -> 0 | R175: 0 | S175: =SUM(D175:O175) -> 0
B176: Subcontractors | D176: 0 | E176: 0 | F176: 0 | G176: 0 | H176: 0 | I176: 0 | J176: 0 | K176: 0 | L176: 0 | M176: 0 | N176: 0 | O176: 0 | P176: 0 | Q176: =+S176 -> 0 | R176: 0 | S176: =SUM(D176:O176) -> 0
B177: Materials and Supplies | D177: 0 | E177: 0 | F177: 0 | G177: $96.40 | H177: 0 | I177: $159.04 | J177: 0 | K177: $28.61 | L177: 0 | M177: 0 | N177: 0 | O177: 0 | P177: 0 | Q177: =+S177 -> $284.05 | R177: 0 | S177: =SUM(D177:O177) -> $284.05
B178: Inventory Management
B179: Labour | D179: 0 | E179: 0 | F179: 0 | G179: 0 | H179: $182.25 | I179: $121.50 | J179: $101.25 | K179: $1,188.00 | L179: $283.50 | M179: $469.50 | N179: 0 | O179: 0 | P179: 0 | Q179: =+S179 -> $2,346.00 | R179: 0 | S179: =SUM(D179:O179) -> $2,346.00
B180: Equipment | D180: 0 | E180: 0 | F180: 0 | G180: 0 | H180: 0 | I180: 0 | J180: 0 | K180: 0 | L180: 0 | M180: 0 | N180: 0 | O180: 0 | P180: 0 | Q180: =+S180 -> 0 | R180: 0 | S180: =SUM(D180:O180) -> 0
B181: Travel | D181: 0 | E181: 0 | F181: 0 | G181: 0 | H181: 0 | I181: 0 | J181: 0 | K181: 0 | L181: 0 | M181: 0 | N181: 0 | O181: 0 | P181: 0 | Q181: =+S181 -> 0 | R181: 0 | S181: =SUM(D181:O181) -> 0
B182: Subcontractors | D182: 0 | E182: 0 | F182: 0 | G182: 0 | H182: 0 | I182: 0 | J182: 0 | K182: 0 | L182: 0 | M182: 0 | N182: 0 | O182: 0 | P182: 0 | Q182: =+S182 -> 0 | R182: 0 | S182: =SUM(D182:O182) -> 0
B183: Other | D183: 0 | E183: 0 | F183: 0 | G183: 0 | H183: 0 | I183: 0 | J183: 0 | K183: 0 | L183: 0 | M183: 0 | N183: 0 | O183: 0 | P183: 0 | Q183: =+S183 -> 0 | R183: 0 | S183: =SUM(D183:O183) -> 0
B184: EM Equipment Services Totals | D184: =SUM(D167:D183) -> $137.37 | E184: =SUM(E167:E183) -> $218.75 | F184: $1,638.20 | G184: $71,269.37 | H184: $257,742.80 | I184: $36,743.01 | J184: $7,705.82 | K184: $124,919.14 | L184: $1,758.37 | M184: $792.10 | N184: 0 | O184: 0 | P184: =SUM(P167:P183) -> 0 | Q184: =SUM(Q167:Q183) -> $52,460.55 | R184: =SUM(R167:R183) -> $450,464.38 | S184: =SUM(S167:S183) -> $502,924.93
B186: FIELD TECHNICAL SERVICES | D186: September | E186: October | F186: November | G186: December | H186: January | I186: February | J186: March | K186: April | L186: May | M186: June | N186: July | O186: August | P186: One Time | Q186: Recurring | R186: Amortized | S186: Total To Date
B187: Port Services Development
B188: Labour | D188: $432.00 | E188: 0 | F188: 0 | G188: $81.00 | H188: 0 | I188: 0 | J188: $108.00 | K188: $27.00 | L188: $54.00 | M188: $27.00 | N188: 0 | O188: 0 | P188: 0 | Q188: =+S188 -> $729.00 | R188: 0 | S188: =SUM(D188:O188) -> $729.00
B189: Equipment | D189: 0 | E189: 0 | F189: 0 | G189: 0 | H189: 0 | I189: 0 | J189: 0 | K189: 0 | L189: 0 | M189: 0 | N189: 0 | O189: 0 | P189: 0 | Q189: =+S189 -> 0 | R189: 0 | S189: =SUM(D189:O189) -> 0
B190: Travel | D190: $3,707.39 | E190: 0 | F190: 0 | G190: 0 | H190: 0 | I190: 0 | J190: 0 | K190: 0 | L190: 0 | M190: 0 | N190: 0 | O190: 0 | P190: 0 | Q190: =+S190 -> $3,707.39 | R190: 0 | S190: =SUM(D190:O190) -> $3,707.39
B191: Subcontractors | D191: 0 | E191: 0 | F191: 0 | G191: 0 | H191: 0 | I191: $314.90 | J191: 0 | K191: 0 | L191: 0 | M191: 0 | N191: 0 | O191: 0 | P191: 0 | Q191: =+S191 -> $314.90 | R191: 0 | S191: =SUM(D191:O191) -> $314.90
B192: Other | D192: $32.93 | E192: 0 | F192: 0 | G192: 0 | H192: 0 | I192: 0 | J192: 0 | K192: 0 | L192: 0 | M192: 0 | N192: 0 | O192: 0 | P192: 0 | Q192: =+S192 -> $32.93 | R192: 0 | S192: =SUM(D192:O192) -> $32.93
B193: Installation Services
B194: Labour | D194: $65.25 | E194: 0 | F194: 0 | G194: $2,744.25 | H194: $1,740.00 | I194: $18,264.00 | J194: $6,567.00 | K194: $15,834.00 | L194: $2,001.00 | M194: $2,871.00 | N194: 0 | O194: 0 | P194: 0 | Q194: 0 | R194: =+S194 -> $50,086.50 | S194: =SUM(D194:O194) -> $50,086.50
B195: Equipment | D195: 0 | E195: 0 | F195: 0 | G195: 0 | I195: 0 | J195: 0 | K195: 0 | L195: 0 | M195: 0 | N195: 0 | O195: 0 | P195: 0 | Q195: 0 | R195: =+S195 -> 0 | S195: =SUM(D195:O195) -> 0
B196: Travel | D196: 0 | E196: 0 | F196: 0 | G196: $2,895.17 | H196: $1,303.58 | I196: $5,393.97 | J196: $2,306.00 | K196: $7,065.30 | L196: $762.99 | M196: $1,620.63 | N196: 0 | O196: 0 | P196: 0 | Q196: 0 | R196: =+S196 -> $21,347.64 | S196: =SUM(D196:O196) -> $21,347.64
B197: Subcontractors | D197: $8,338.96 | E197: $7,691.25 | F197: $4,963.42 | G197: $12,473.04 | H197: $9,794.06 | I197: 0 | J197: $3,113.47 | K197: $5,902.23 | L197: $3,937.69 | M197: $476.62 | N197: 0 | O197: 0 | P197: 0 | Q197: 0 | R197: =+S197 -> $56,690.74 | S197: =SUM(D197:O197) -> $56,690.74
B198: Materials and Supplies | D198: 0 | E198: 0 | F198: 0 | G198: $116.98 | H198: $377.14 | I198: $673.83 | J198: $112.76 | K198: $134.49 | L198: $19.35 | M198: $155.74 | N198: 0 | O198: 0 | P198: 0 | Q198: 0 | R198: =+S198 -> $1,590.29 | S198: =SUM(D198:O198) -> $1,590.29
B199: Routine Vessel Services
B200: Labour | D200: 0 | E200: 0 | F200: 0 | G200: 0 | H200: 0 | I200: $2,131.50 | J200: 0 | K200: 0 | L200: $348.00 | M200: $115.59 | N200: 0 | O200: 0 | P200: 0 | Q200: =+S200 -> $2,595.09 | R200: 0 | S200: =SUM(D200:O200) -> $2,595.09
B201: Equipment | D201: 0 | E201: 0 | F201: 0 | G201: 0 | H201: 0 | I201: 0 | J201: 0 | K201: 0 | L201: 0 | M201: 0 | N201: 0 | O201: 0 | P201: 0 | Q201: =+S201 -> 0 | R201: 0 | S201: =SUM(D201:O201) -> 0
B202: Travel | D202: 0 | E202: 0 | F202: 0 | G202: 0 | H202: 0 | I202: 0 | J202: 0 | K202: 0 | L202: 0 | M202: 0 | N202: 0 | O202: 0 | P202: 0 | Q202: =+S202 -> 0 | R202: 0 | S202: =SUM(D202:O202) -> 0
B203: Subcontractors | D203: 0 | E203: 0 | F203: 0 | G203: 0 | H203: $748.67 | I203: $481.17 | J203: $281.74 | K203: 0 | L203: $939.84 | M203: 0 | N203: 0 | O203: 0 | P203: 0 | Q203: =+S203 -> $2,451.42 | R203: 0 | S203: =SUM(D203:O203) -> $2,451.42
B204: Other | D204: 0 | E204: 0 | F204: 0 | G204: 0 | H204: 0 | I204: 0 | J204: 0 | K204: 0 | L204: 0 | M204: 0 | N204: 0 | O204: 0 | P204: 0 | Q204: =+S204 -> 0 | R204: 0 | S204: =SUM(D204:O204) -> 0
B205: Technical Support
B206: Labour | D206: 0 | E206: 0 | F206: 0 | G206: 0 | H206: $3,436.50 | I206: $3,892.50 | J206: $4,045.50 | K206: $3,969.00 | L206: $4,315.50 | M206: $3,894.00 | N206: 0 | O206: 0 | P206: 0 | Q206: =+S206 -> $23,553.00 | R206: 0 | S206: =SUM(D206:O206) -> $23,553.00
B207: Equipment | D207: 0 | E207: 0 | F207: 0 | G207: 0 | H207: 0 | I207: 0 | J207: 0 | K207: 0 | L207: 0 | M207: 0 | N207: 0 | O207: 0 | P207: 0 | Q207: =+S207 -> 0 | R207: 0 | S207: =SUM(D207:O207) -> 0
B208: Travel | D208: 0 | E208: 0 | F208: 0 | G208: 0 | H208: 0 | I208: 0 | J208: 0 | K208: 0 | L208: 0 | M208: 0 | N208: 0 | O208: 0 | P208: 0 | Q208: =+S208 -> 0 | R208: 0 | S208: =SUM(D208:O208) -> 0
B209: Subcontractors | D209: 0 | E209: 0 | F209: 0 | G209: 0 | H209: 0 | I209: 0 | J209: 0 | K209: 0 | L209: 0 | M209: 0 | N209: 0 | O209: 0 | P209: 0 | Q209: =+S209 -> 0 | R209: 0 | S209: =SUM(D209:O209) -> 0
B210: Other | D210: 0 | E210: 0 | F210: 0 | G210: 0 | H210: 0 | I210: 0 | J210: 0 | K210: 0 | L210: 0 | M210: 0 | N210: 0 | O210: 0 | P210: 0 | Q210: =+S210 -> 0 | R210: 0 | S210: =SUM(D210:O210) -> 0
B211: Field Technical Services Totals | D211: =SUM(D188:D210) -> $12,576.53 | E211: $7,691.25 | F211: $4,963.42 | G211: $18,310.44 | H211: $17,399.95 | I211: $31,151.87 | J211: $16,534.47 | K211: $32,932.02 | L211: $12,378.37 | M211: $9,160.58 | N211: =SUM(N194:N210) -> 0 | O211: 0 | P211: =SUM(P194:P210) -> 0 | Q211: $28,599.51 | R211: $129,715.17 | S211: =SUM(S188:S210) -> $163,098.90
B213: PROGRAM TOTALS | D213: =SUM(D125:D141,D146:D162,D167:D183,D188:D210) -> $16,276.32 | E213: =SUM(E125:E141,E146:E162,E167:E183,E188:E210) -> $14,846.92 | F213: $15,554.04 | G213: $94,498.98 | H213: $276,133.42 | I213: $68,602.05 | J213: $24,967.70 | K213: $158,538.07 | L213: $14,884.40 | M213: $10,761.09 | N213: 0 | O213: 0 | P213: =SUM(P125:P141,P146:P162,P167:P183,P188:P210) -> 0 | Q213: $114,883.46 | R213: $580,179.55 | S213: =SUM(S125:S141,S146:S162,S167:S183,S188:S210) -> $695,063.01
B215: Without Equipment | D215: =SUM(D211,D163,D142,D167,D169,D170,D171,D173,D174,D175,D176,D177,D179,D180,D181,D182,D183) -> $16,276.32 | E215: =SUM(E211,E163,E142,E167,E169,E170,E171,E173,E174,E175,E176,E177,E179,E180,E181,E182,E183) -> $14,846.92 | F215: $15,554.04 | G215: $38,766.27 | H215: $45,658.53 | I215: $44,953.59 | J215: $24,967.70 | K215: $36,812.07 | L215: $14,884.40 | M215: $10,761.09 | N215: 0 | O215: 0 | S215: =SUM(D215:O215) -> $263,480.95
B216: Labour Only | D216: =SUM(D125,D131,D137,D146,D152,D158,D167,D173,D179,D188,D194,D200,D206) -> $3,393.00 | E216: =SUM(E125,E131,E137,E146,E152,E158,E167,E173,E179,E188,E194,E200,E206) -> $6,489.00 | F216: $8,285.75 | G216: $21,644.75 | H216: $25,608.50 | I216: $36,552.25 | J216: $17,739.75 | K216: $22,130.50 | L216: $7,191.00 | M216: $7,518.84 | N216: 0 | O216: 0 | S216: =SUM(S125,S131,S137,S146,S152,S158,S167,S173,S179,S188,S194,S200,S206) -> $156,553.34
B217: Expenses Only | D217: =SUM(D127,D128,D129,D133,D134,D135,D139,D140,D141,D148,D149,D150,D154,D155,D156,D160,D161,D162,D169,D170,D171,D175,D176,D177,D181,D182,D183,D190,D191,D192,D196,D197,D198,D202,D203,D204,D208,D209,D210) -> $12,883.32 | E217: =SUM(E127,E128,E129,E133,E134,E135,E139,E140,E141,E148,E149,E150,E154,E155,E156,E160,E161,E162,E169,E170,E171,E175,E176,E177,E181,E182,E183,E190,E191,E192,E196,E197,E198,E202,E203,E204,E208,E209,E210) -> $8,357.92 | F217: $7,268.29 | G217: $17,121.52 | H217: $20,050.03 | I217: $8,401.34 | J217: $7,227.95 | K217: $14,681.57 | L217: $7,693.40 | M217: $3,242.25 | N217: 0 | O217: 0 | S217: =SUM(S127,S128,S129,S133,S134,S135,S139,S140,S141,S148,S149,S150,S154,S155,S156,S160,S161,S162,S169,S170,S171,S175,S176,S177,S181,S182,S183,S190,S191,S192,S196,S197,S198,S202,S203,S204,S208,S209,S210) -> $106,927.61
B218: Equipment Only | D218: =SUM(D126,D132,D138,D147,D153,D159,D168,D174,D180,D189,D195,D201,D207) -> 0 | E218: =SUM(E126,E132,E138,E147,E153,E159,E168,E174,E180,E189,E195,E201,E207) -> 0 | F218: 0 | G218: $55,732.71 | H218: $230,474.89 | I218: $23,648.46 | J218: 0 | K218: $121,726.00 | L218: 0 | M218: 0 | N218: 0 | O218: 0 | S218: =SUM(S126,S132,S138,S147,S153,S159,S168,S174,S180,S189,S195,S201,S207) -> $431,582.06
B219: Subs Conly | D219: =SUM(D128,D134,D140,D149,D155,D161,D170,D176,D182,D191,D197,D203,D209) -> $8,338.96 | E219: =SUM(E128,E134,E140,E149,E155,E161,E170,E176,E182,E191,E197,E203,E209) -> $7,691.25 | F219: $4,963.42 | G219: $12,473.04 | H219: $10,542.73 | I219: $796.07 | J219: $3,395.21 | K219: $5,902.23 | L219: $4,877.53 | M219: $476.62 | N219: 0 | O219: 0 | S219: =SUM(S128,S134,S140,S149,S155,S161,S170,S176,S182,S191,S197,S203,S209) -> $59,457.06

Sheet Tasks List Rolled Up
A1: Program Cost Element | B1: One time | C1: Recurrent | D1: Amortized
A2: 1. Project Coordination
A3: a. Operations Management | C3: X
A4: b. Program Analysis and Review | C4: X
A5: 2. EM Equipment Services
A6: a. Equipment Provision | D6: X
A7: b. Inventory Management | C7: X
A8: c. Travel Time (installations) | D8: X
A9: 3. Field Technical Services
A10: a. Port Services Development | C10: X
A11: b. Installation Services | D11: X
A12: c. Routine Vessel Services | C12: X
A13: d. Technical Support | C13: X
A14: 4. Data Analysis Services
A15: a. Analysis Design | B15: x
A16: b. EM Data Interpretation | C16: X
A17: c. Data Analysis and Reporting | C17: X
A18: d. Hard Drive Management | C18: X
